Cogmind - Beta 14 @@@ ROGUE MODE // 2024.11.22 @ 16:44:52 Player: Zane Result: Destroyed by Shrapnel Trap Performance ------------- Evolutions (0) 0 Regions Visited (3) 600 Robots Destroyed (30) 150 Value Destroyed (795) 795 Prototype IDs (2) 40 Alien Tech Used (0) 0 Bonus (0) 0 TOTAL SCORE: 1585 Bonus ------- None Cogmind --------- Core Integrity 0/250 Matter 280/300 Energy 197/200 System Corruption 0% Temperature Cool (1) Movement Walking (130) Location -10/Subcaves Parts ------- > --- POWER (1) -------- Subdweller Power Source > --- PROPULSION (2) --- Aluminum Leg Makeshift Leg > --- UTILITY (2) ------ Small Storage Unit Sensor Array > --- WEAPON (2) ------- Assault Rifle Heavy Assault Rifle > --- INVENTORY (8) ---- Ion Engine Subdweller Power Source Light Treads High-capacity Matter Pod (200) Core Shielding Light Armor Plating Subdweller Machine Gun Battle Cannon Peak State ------------ > --- POWER ------------ Subdweller Power Source > --- PROPULSION ------- Aluminum Leg Makeshift Leg > --- UTILITY ---------- Small Storage Unit Sensor Array > --- WEAPON ----------- Heavy Assault Rifle Battle Cannon > --- INVENTORY -------- Ion Engine Subdweller Power Source Light Treads High-capacity Matter Pod Core Shielding Light Armor Plating Assault Rifle Subdweller Machine Gun [Rating: 14] Favorites ----------- Power Ion Engine Engine Ion Engine Power Core Light Nuclear Core Propulsion Aluminum Leg Treads Light Treads Leg Aluminum Leg Utility Small Storage Unit Device Sensor Array Storage Small Storage Unit Protection Light Armor Plating Weapon Assault Rifle Ballistic Gun Assault Rifle Ballistic Cannon Battle Cannon Launcher Grenade Launcher Special Weapon Mining Laser Build | -11 -10 -10 -10 ------- Run | Yrd Mat Min Sub Slots Evolved . | . . . . Power . | . . . . Propulsion . | . . . . Utility . | . . . . Weapon . | . . . . Parts Attached 40 | 7 12 1 20 Power 6 | 1 3 . 2 Engine 5 | 1 2 . 2 Core 1 | . 1 . . Reactor . | . . . . Propulsion 7 | 2 4 . 1 Treads 4 | 2 2 . . Leg 3 | . 2 . 1 Wheel . | . . . . Hover . | . . . . Flight . | . . . . Utility 8 | 2 1 . 5 Device 4 | 1 1 . 2 Storage 1 | 1 . . . Processor . | . . . . Hackware . | . . . . Protection 3 | . . . 3 Artifact . | . . . . Weapon 19 | 2 4 1 12 Energy Gun . | . . . . Energy Cannon . | . . . . Ballistic Gun 12 | 2 2 . 8 Ballistic Cannon 1 | . . . 1 Launcher 4 | . 2 . 2 Special Weapon 2 | . . 1 1 Impact Weapon . | . . . . Slashing Weapon . | . . . . Piercing Weapon . | . . . . Special Melee Weapon . | . . . . Unidentified Prototypes . | . . . . Parts Lost 8 | . 5 . 3 Power 2 | . 1 . 1 Propulsion 2 | . 2 . . Utility 1 | . 1 . . Weapon 3 | . 1 . 2 Highest Loss Streak 2 | . 2 . 2 To Critical Strikes . | . . . . Average Slot Usage (%) 99 | . 97 100 99 Engine 13 | . 13 14 13 Treads 10 | . 25 . . Leg 17 | . 2 28 28 Device 13 | . 13 14 12 Storage 14 | . 14 14 14 Ballistic Gun 17 | . 25 9 13 Ballistic Cannon 1 | . . . 3 Launcher 3 | . 1 14 3 Special Weapon 4 | . . 4 7 Peak Build Rating 14 | 7 9 7 14 Average Rating 7 | 5 6 7 8 On Entrance 5 | . 7 7 7 Naked Turns . | . . . . Heaviest Build 19 | 14 16 16 19 Greatest Support 40 | 40 40 20 30 Greatest Overweight (x) 2 | 2 . . . Average Overweight (x) . | . . . . Largest Inventory Capacity 8 | 8 8 8 8 Average Capacity 7 | 7 8 8 8 Most Carried 8 | 4 8 8 8 Average Carried 7 | 3 7 7 7 Final Capacity 8 | 8 8 8 8 Final Carried 8 | 4 8 8 8 Class Distribution -------------------- 76% | Mutant 23% | Scavenger-Mutant Dominant Class ---------------- Mutant | -10/Materials Mutant | -10/Mines Scavenger-Mutant | -10/Subcaves Resources | -11 -10 -10 -10 ----------- Run | Yrd Mat Min Sub Matter Collected 1344 | 295 380 100 569 Remotely . | . . . . Salvage Created 768 | 158 426 . 184 Parts 57 | 8 33 . 16 Haulers Intercepted 1 | . 1 . . Recyclers Shooed 1 | 1 . . . Parts Field Recycled . | . . . . Retrieved Matter . | . . . . Parts Self-Destructed 6 | . . . 6 Prevented . | . . . . Kills | -11 -10 -10 -10 ------- Run | Yrd Mat Min Sub Combat Hostiles Destroyed 21 | . 11 . 10 Guns 9 | . 7 . 2 Cannons 2 | . . . 2 AOE 10 | . 4 . 6 Classes Destroyed 10 | 2 6 . 2 Worker 1 | . 1 . . Tunneler 4 | 3 1 . . Hauler 1 | . 1 . . Recycler 1 | 1 . . . Operator 1 | . 1 . . Watcher 1 | . 1 . . Swarmer 5 | . 3 . 2 Grunt 8 | . 8 . . Sentry 1 | . . . 1 Subdweller 7 | . . . 7 Best Kill Streak 5 | 4 5 . 3 Combat Bots Only 3 | . 3 . 3 Max Kills in Single Turn 2 | 1 2 . 2 Gunslinging . | . . . . Exploded 2 | . 2 . 2 Melee . | . . . . Uniques/NPCs Destroyed . | . . . . Combat | -11 -10 -10 -10 -------- Run | Yrd Mat Min Sub Hostile Shots Fired 107 | . 69 . 38 Missed 21 | . 9 . 12 Damage Taken 1471 | . 777 . 694 Core 252 | . 112 . 140 Absorbed by Shields . | . . . . Core Remaining (%) 100 | 100 . . . Volleys Fired 136 | 8 52 9 67 Largest 2 | 2 2 1 2 Hottest 100 | 40 50 100 100 Shots Fired 202 | 15 99 9 79 Gun 125 | 15 95 . 15 Cannon 19 | . . . 19 Launcher 17 | . 4 . 13 Special 41 | . . 9 32 Kinetic 144 | 15 95 . 34 Thermal 41 | . . 9 32 Explosive 17 | . 4 . 13 Electromagnetic . | . . . . Robot Hit Streak 23 | 12 16 . 23 Robot Miss Streak 4 | . 4 . 1 Penetration Max . | . . . . Secondary Targets . | . . . . Shots Hit Robots 112 | 12 71 . 29 Core Hits 54 | 5 31 . 18 Critical Kills . | . . . . Critical Parts Destroyed 1 | 1 . . . Critical Strikes 1 | 1 . . . Destroy 1 | 1 . . . Melee Attacks . | . . . . Impact . | . . . . Slashing . | . . . . Piercing . | . . . . Sneak Attacks . | . . . . Combat Hostiles . | . . . . Follow-up Attacks . | . . . . Damage Inflicted 2216 | 135 1220 . 861 Guns 1022 | 135 743 . 144 Cannons 191 | . . . 191 Explosions 993 | . 467 . 526 Melee . | . . . . Ramming 10 | . 10 . . Kinetic 1213 | 135 743 . 335 Thermal 87 | . 87 . . Explosive 906 | . 380 . 526 Electromagnetic . | . . . . Impact . | . . . . Slashing . | . . . . Piercing . | . . . . Highest Corruption . | . . . . Average Corruption . | . . . . Corruption Purged . | . . . . Corruption Blocked . | . . . . Overload Shots . | . . . . Overflow Damage . | . . . . Projectiles . | . . . . Explosions . | . . . . Melee . | . . . . Knockbacks 1 | . 1 . . Impact 1 | . 1 . . Kinetic . | . . . . Secondary . | . . . . Self-Inflicted Damage 137 | . 17 . 120 Shots 9 | . 1 . 8 Rammed 5 | 2 3 . . Targets Rammed 5 | 2 3 . . Kicked . | . . . . Crushed . | . . . . Highest Temperature 104 | . 33 104 . Average Temperature 25 | . 9 45 . Received Heat Transfer 576 | . 426 . 150 Siege Activations . | . . . . Robots Corrupted . | . . . . Combat Hostiles . | . . . . Parts Fried . | . . . . Impact Corruptions . | . . . . Robots Melted . | . . . . Combat Hostiles . | . . . . Parts Melted . | . . . . Heat Transferred 50 | . 50 . . Parts Sabotaged . | . . . . Parts Stolen . | . . . . Parts Stripped . | . . . . Power Chain Reactions . | . . . . Alert | -11 -10 -10 -10 ------- Run | Yrd Mat Min Sub Peak Influence 232 | 20 232 20 . Initial 20 | . 13 20 . Average 64 | 7 85 20 . Maximum Alert Level 1 | . 1 . . Low Security (%) 98 | 100 97 100 . Level 1 1 | . 2 . . Level 2 . | . . . . Level 3 . | . . . . Level 4 . | . . . . Level 5 . | . . . . High Security . | . . . . Max Security . | . . . . Squads Dispatched 2 | . 2 . . Investigation 1 | . 1 . . Extermination . | . . . . Reinforcement 1 | . 1 . . Assault . | . . . . Garrison . | . . . . Intercept . | . . . . Searches Triggered . | . . . . Construction Impeded . | . . . . Haulers Reinforced . | . . . . Active Scanning Responses . | . . . . Cargo Convoy Interrupts . | . . . . Stealth | -11 -10 -10 -10 --------- Run | Yrd Mat Min Sub Distress Signals . | . . . . Communications Jammed . | . . . . Distress Signals . | . . . . Times Spotted 28 | . 18 . 10 Peak Tracking Total 3 | . 3 . 3 Tactical Retreats . | . . . . Traps | -11 -10 -10 -10 ------- Run | Yrd Mat Min Sub Traps Triggered 3 | . 2 . 1 Indirectly . | . . . . Trap Hack Attempts . | . . . . Triggered . | . . . . Disarmed . | . . . . Reprogrammed . | . . . . Reused . | . . . . Traps Extracted . | . . . . Installed . | . . . . Triggered . | . . . . Machines | -11 -10 -10 -10 ---------- Run | Yrd Mat Min Sub Machines Disabled 4 | . 4 . . Max in Single Turn 4 | . 4 . . Machines Repaired . | . . . . Machines Dismantled . | . . . . Machines Sabotaged . | . . . . Overloaded Fab Kills . | . . . . Hacking | -11 -10 -10 -10 --------- Run | Yrd Mat Min Sub Machines Accessed 3 | . 3 . . Terminals 3 | . 3 . . Fabricators . | . . . . Repair Stations . | . . . . Recycling Units . | . . . . Scanalyzers . | . . . . Garrison Access . | . . . . Total Hacks 10 | . 10 . . Successful 3 | . 3 . . Failed 7 | . 7 . . Catastrophic . | . . . . Database Lockouts . | . . . . Manual 1 | . 1 . . Terminals 10 | . 10 . . Fabricators . | . . . . Repair Stations . | . . . . Recycling Units . | . . . . Scanalyzers . | . . . . Garrison Access . | . . . . Terminal Hacks 3 | . 3 . . Prototype ID Bank 1 | . 1 . . Security Status 1 | . 1 . . Zone Layout 1 | . 1 . . Fabricator Hacks . | . . . . Repair Station Hacks . | . . . . Recycling Unit Hacks . | . . . . Scanalyzer . | . . . . Garrison Access Hacks . | . . . . Unauthorized Hacks . | . . . . Terminals . | . . . . Fabricators . | . . . . Repair Stations . | . . . . Recycling Units . | . . . . Scanalyzers . | . . . . Garrison Access . | . . . . Data Cores Recovered . | . . . . Used . | . . . . Hacking Detections 3 | . 3 . . Full Trace Events 1 | . 1 . . Feedback Events . | . . . . Feedback Blocked . | . . . . Robot Schematics Acquired . | . . . . Robots Built . | . . . . Authchips . | . . . . Time . | . . . . Total Robot Build Rating . | . . . . Part Schematics Acquired . | . . . . Parts Built . | . . . . Authchips . | . . . . Time . | . . . . Total Part Build Rating . | . . . . Parts Repaired . | . . . . Time . | . . . . Parts Recycled . | . . . . Recycled Matter . | . . . . Retrieved Matter . | . . . . Retrieved Components . | . . . . Parts Scanalyzed . | . . . . Part Schematics Acquired . | . . . . Parts Damaged . | . . . . Bothacking | -11 -10 -10 -10 ------------ Run | Yrd Mat Min Sub Used RIF Installer . | . . . . Robots Hacked . | . . . . Non-combat . | . . . . Combat . | . . . . Robot Hacks Applied . | . . . . Relay Couplers Released . | . . . . Fabnet Peak Effective % . | . . . . Robots Rewired . | . . . . Allies Hacked . | . . . . Hacks Repelled . | . . . . Allies | -11 -10 -10 -10 -------- Run | Yrd Mat Min Sub Total Allies . | . . . . Largest Group . | . . . . Highest-Rated Group . | . . . . Highest-Rated Ally . | . . . . Total Orders . | . . . . Ally Attacks . | . . . . Total Damage . | . . . . Kills . | . . . . Allies Corrupted . | . . . . Allies Melted . | . . . . Intel | -11 -10 -10 -10 ------- Run | Yrd Mat Min Sub Robot Analysis Total . | . . . . Derelict Logs Recovered 1 | . . . 1 Drone Launches . | . . . . Drone Recoveries . | . . . . Exploration | -11 -10 -10 -10 ------------- Run | Yrd Mat Min Sub Turns Passed 2330 | 149 889 243 1049 Spaces Moved 1185 | 71 447 33 634 Core 11 | 11 . . . Treads 450 | 60 390 . . Legs 724 | . 57 33 634 Wheels . | . . . . Hover . | . . . . Flight . | . . . . Fastest Speed 50 | 50 120 120 120 Average Speed 135 | 155 154 120 120 Slowest Speed 160 | 160 160 120 130 Overloaded Moves . | . . . . Propulsion Burnouts . | . . . . Robots Hopped . | . . . . Cave-ins Triggered . | . . . . Exploration Rate (%) 26 | 5 69 6 25 Regions Visited 3 Branch Regions 2 Pre-discovered Areas . | . . . . Known Exits Taken . | . . . . Unknown Exits Taken 3 | 1 1 1 . Scrap Searched 6 | . . . 6 Spaces Dug 27 | . . 4 23 Terrain Destroyed 106 | . 24 4 78 Melee . | . . . . Projectile 4 | . . 4 . AOE 102 | . 24 . 78 Terrain Rammed . | . . . . Walls Destroyed . | . . . . Machines Disabled . | . . . . Actions | -11 -10 -10 -10 --------- Run | Yrd Mat Min Sub Total 1626 | 91 553 210 772 Wait 225 | . 23 164 38 Move 1182 | 70 446 32 634 Hop . | . . . . Pick Up 22 | 4 10 2 6 Fast Attach 10 | 7 3 . . Attach 5 | . 2 . 3 Detach . | . . . . Swap 25 | . 7 1 17 Drop 16 | . 7 2 7 Fire 136 | 8 52 9 67 Melee . | . . . . Ram . | . . . . Kick . | . . . . Crush 5 | 2 3 . . Escape Stasis . | . . . . Rewire . | . . . . Trap . | . . . . Miscellaneous . | . . . . Route ------- -11/Scrapyard -10/Materials (discovered 3 exits: [*Mat] / [*Min x2]) -10/Mines -10/Subcaves (discovered 2 exits: [*Mat] / Rec) History --------- Turn | Location | Event 9 | -11/Scrapyard | Discovered new exit (range 16) 150 | -11/Scrapyard | Entered Materials 303 | -10/Materials | Build established: Mutant 429 | -10/Materials | Discovered new exit (range 11) 451 | -10/Materials | Discovered new exit (range 6) 830 | -10/Materials | Discovered new exit (range 11) 1039 | -10/Materials | Entered Mines 1249 | -10/Mines | Discovered new exit (range 3) 1282 | -10/Mines | Entered Subcaves 1286 | -10/Subcaves | Identified exit to Recycling 1356 | -10/Subcaves | Discovered new exit (range 9) 1407 | -10/Subcaves | Shifting Twisted Machinery released Sub. Machine Gun 1411 | -10/Subcaves | Shifting Twisted Machinery released Sub. Power Source 1438 | -10/Subcaves | A swath of the cavern ceiling suddenly collapsed 1674 | -10/Subcaves | Core integrity fell below 50% 1949 | -10/Subcaves | Ambushed by Subdweller buried in earth 2148 | -10/Subcaves | Core integrity fell below 20% 2248 | -10/Subcaves | Build established: Scavenger-Mutant 2331 | -10/Subcaves | Destroyed by Shrapnel Trap Last Messages --------------- 02261_ Found Flamer. 02261_ Found 57 Matter. 02262_ Acquired 57 matter. 02262_ Searching scrap... 02262_ Found Flamer. 02262_ Found 67 Matter. 02263_ Acquired 67 matter. 02264_ Searching scrap... 02264_ Found Mak. Leg. 02264_ Found 56 Matter. 02265_ Acquired 51 matter. 02265_ Searching scrap... 02265_ Found Flamer. 02265_ Found Sub. Beam Cannon. 02265_ Found 56 Matter. 02272_ Dropped Aluminum Leg. 02274_ Subatomizers dissect the Flamer. 02331_ Triggered Shrapnel Trap. 02331_ An expanding cloud of shrapnel blasts out in all directions. Map ----- +----------------------------------------------------+ | "#"##?????#########???###### ### #???????? | | "#"#??????????????????????# #???????? | | #####?????????????????????# ## #?????????? | | #"#"#?????????????????????# ### ####?????????? | | ## #?????????????????????##?## ###????????????? | | # ##????????????????????#### ##??????????????? | | " #???????????????????## #???????????????? | | " ##???????????????????# ##??????????????? | | " #####????????????????### #??????????????? | | #??????????????????## ##?????????????? | | #???????????????????# #?????????????? | | ##??????????????????## #?????????????? | | #???????????????????# ## #??????????? | | ##??????????????????### #????????? | | #???????????????????## ## #???????? | | # ##??????????????????## #?# #???????? | | # #???????????????##### #?? ##???????? | | # ##???????????????# #??# ###????????? | | # ##????????????????# #???###??????????? | | # ####??????????????# #????????????????? | | ### #??????????????# ##????????????????? | | #?# ##??????????????###### #????????????????? | | ### ##???????????????????# ##????????????????? | | ## % #???????????????##??## #?????????????????? | | # % #??????????????## #### ## # #???????????? | | ## ##??????????????# @ #????????? | | ?### #??????????????# ^ # # #????????? | | ???####??????????????## #### ##???????????????? | | ??????????????????????#####???###????????????????? | | ?????????????????????????????????????????????????? | | ?????????????????????????????????????????????????? | | ?????????????????????????????????????????????????? | | ?????????????????????????????????????????????????? | | ?????????????????????????????????????????????????? | | ?????????????????????????????????????????????????? | | ?????????????????????????????????????????????????? | | ?????????????????????????????????????????????????? | | ?????????????????????????????????????????????????? | | ?????????????????????????????????????????????????? | | ?????????????????????????????????????????????????? | | ?????????????????????????????????????????????????? | | ?????????????????????????????????????????????????? | | ?????????????????????????????????????????????????? | | ?????????????????????????????????????????????????? | | ?????????????????????????????????????????????????? | | ?????????????????????????????????????????????????? | | ?????????????????????????????????????????????????? | | ?????????????????????????????????????????????????? | | ?????????????????????????????????????????????????? | | ?????????????????????????????????????????????????? | +----------------------------------------------------+ Best States ------------- Heat Dissipation 25 Energy Generation 15 Energy Capacity 250 Matter Stores 300 Matter Capacity 300 Sight Range 16 Robot Scan Range 14 Terrain Scan Density 10 Armor Coverage 150 Evasion (%) 55 Recoil Reduction 2 Item Schematics ----------------- None Robot Schematics ------------------ None Fabricated ------------ Nothing Alien Tech Used ----------------- None Achievements -------------- None Challenges ------------ None Game ------ Seed SalvageParticleScrapsphere Manual? 0 Play Time 00:19:48 Cumulative 30.4 hours Start 2024.11.22 @ 16:21:57 End 2024.11.22 @ 16:44:52 Sessions 1 Manual Loads 0 Difficulty Rogue Special Mode None Game No. 42 Rogue 42 Adventurer 0 Explorer 0 Win Type - Total 0 Types 0/0/0/0/0/0/0/0/0 Lore% 33 Gallery% 31 Achievement% 25 Wizard Run 0 Options --------- Layout 2 ASCII 0 Keyboard 0 Movement Numpad Keybinds 0 Fullscreen 1 Font 24/Smallcaps Map View 50x44 Zoom Use 0% Tactical HUD 1 Map Filters NONE Filters NONE Steam 1 RUN: 808e8bbf-4026-47ad-ad4f-1f670079aa81